fUSD/lending_fUSD_20250823
["ID","MTS","AMOUNT","RATE_DAILY","PERIOD"]
[380934461,1755907854758,-894.0,0.00013854,2]
[380934462,1755907854768,-200.0,0.00013859,2]
[380934463,1755907854779,-1829.60864618,0.00013866,2]
[380934464,1755907854788,-150.0,0.00013869,2]
[380934465,1755907854798,-913.29515279,0.00013871,2]
[380934466,1755907854808,-3655.485,0.00013881,2]
[380934467,1755907854818,-178.992,0.00013881,2]
[380934468,1755907854828,-150.0,0.00013882,2]
[380934469,1755907854838,-150.0,0.00013884,2]
[380934470,1755907854849,-150.0,0.00013886,2]
[380934471,1755907854860,-2700.0,0.000139,5]
[380934472,1755907854871,-879.06988791,0.000139,2]
[380934473,1755907854881,-879.06988781,0.000139,2]
[380934474,1755907854892,-879.06988781,0.000139,2]
[380934475,1755907854902,-879.06988781,0.000139,2]
[380934476,1755907854913,-879.06988781,0.000139,2]
[380934477,1755907854925,-879.06988781,0.000139,2]
[380934478,1755907854935,-879.06988781,0.000139,2]
[380934479,1755907854946,-3638.5777569,0.00013902,2]
[380934480,1755907854957,-1728.14761797,0.00013902,2]
[380934481,1755907854967,-1680.0,0.00013905,2]
[380934482,1755907854977,-150.0,0.00013906,2]
[380934483,1755907854988,-767.92,0.00013918,2]
[380934484,1755907854998,-150.0,0.00013923,2]
[380934485,1755907855008,-2276.09335769,0.00013924,2]
[380934486,1755907855019,-150.0,0.00013932,2]
[380934487,1755907855029,-150.0,0.00013935,2]
[380934488,1755907855039,-150.0,0.00013939,2]
[380934489,1755907855049,-150.0,0.00013943,2]
[380934490,1755907855059,-150.0,0.00013943,2]
[380934491,1755907855069,-166.67,0.0001395,2]
[380934492,1755907855079,-571.08961924,0.00013956,2]
[380934493,1755907855089,-2531.73304294,0.00013956,2]
[380934494,1755907855101,-571.08961924,0.00013956,2]
[380934495,1755907855112,-154.0,0.00013957,2]
[380934496,1755907855122,-154.0,0.00013957,2]
[380934497,1755907855132,-154.0,0.00013957,2]
[380934498,1755907855144,-353.46979137,0.00013957,2]
[380934499,1755907856315,-1960.81378776,0.00013957,2]
[380934500,1755907856329,-500.0,0.00013957,2]
[380934501,1755907856339,-2096.83411532,0.00013958,2]
[380934502,1755907856348,-1879.38465151,0.00013959,2]
[380934503,1755907856358,-16459.86623698,0.0001396,2]
[380934504,1755907856370,-6109.1269042,0.0001396,2]
[380934505,1755907856379,-151.0,0.0001396,2]
[380934506,1755907856389,-151.0,0.0001396,2]
[380934507,1755907856398,-151.0,0.0001396,2]
[380934508,1755907856408,-151.0,0.0001396,2]
[380934509,1755907856417,-151.0,0.0001396,2]
[380934510,1755907856428,-151.0,0.0001396,2]
[380934511,1755907856438,-151.0,0.0001396,2]
[380934512,1755907856448,-151.0,0.0001396,2]
[380934513,1755907856458,-151.0,0.0001396,2]
[380934514,1755907856468,-151.0,0.0001396,2]
[380934515,1755907856477,-151.0,0.0001396,2]
[380934516,1755907856487,-151.0,0.0001396,2]
[380934517,1755907856497,-151.0,0.0001396,2]
[380934518,1755907856507,-151.0,0.0001396,2]
[380934519,1755907856517,-151.0,0.0001396,2]
[380934520,1755907856529,-151.0,0.0001396,2]
[380934521,1755907856539,-151.0,0.0001396,2]
[380934522,1755907856549,-151.0,0.0001396,2]
[380934523,1755907856559,-234.17174,0.0001396,2]
[380934524,1755907856569,-151.0,0.0001396,2]
[380934525,1755907856579,-151.0,0.0001396,2]
[380934526,1755907856589,-151.0,0.0001396,2]
[380934527,1755907856598,-151.0,0.0001396,2]
[380934528,1755907856608,-151.0,0.0001396,2]
[380934529,1755907856618,-151.0,0.0001396,2]
[380934530,1755907856628,-151.0,0.0001396,2]
[380934531,1755907856638,-151.0,0.0001396,2]
[380934532,1755907856647,-151.0,0.0001396,2]
[380934533,1755907856658,-151.0,0.0001396,2]
[380934534,1755907856668,-151.0,0.0001396,2]
[380934535,1755907856678,-285.295374,0.0001396,2]
[380934536,1755907856688,-151.0,0.0001396,2]
[380934537,1755907856697,-285.295374,0.0001396,2]
[380934538,1755907856708,-285.295374,0.0001396,2]
[380934539,1755907856718,-285.295374,0.0001396,2]
[380934540,1755907856728,-725.5048149,0.0001396,2]
[380934541,1755907856737,-1661.9351877,0.0001396,2]
[380934542,1755907856747,-150.0,0.00013961,2]
[380934543,1755907856757,-150.0,0.00013961,2]
[380934544,1755907856767,-1444.48572389,0.00013961,2]
[380934545,1755907856777,-1227.03626007,0.00013962,2]
[380934546,1755907856787,-792.13733245,0.00013963,2]
[380934547,1755907856797,-1009.58679626,0.00013963,2]
[380934548,1755907856807,-3638.5777569,0.00013963,2]
[380934549,1755907856818,-1728.14761797,0.00013963,2]
[380934550,1755907856828,-172.79442,0.00013964,2]
[380934551,1755907856839,-151.0,0.00013964,2]
[380934552,1755907856851,-151.0,0.00013964,2]
[380934553,1755907856861,-151.0,0.00013964,2]
[380934554,1755907856872,-150.0,0.00013964,2]
[380934555,1755907856883,-151.0,0.00013964,2]
[380934556,1755907856892,-151.0,0.00013964,2]
[380934557,1755907856902,-152.165569,0.00013964,2]
[380934558,1755907856913,-151.0,0.00013964,2]
[380934559,1755907856922,-151.0,0.00013964,2]
[380934560,1755907856932,-151.0,0.00013964,2]
[380934561,1755907856942,-151.0,0.00013964,2]
[380934562,1755907856952,-151.0,0.00013964,2]
[380934563,1755907856962,-438.484875,0.00013964,2]
[380934564,1755907856972,-438.484875,0.00013964,2]
[380934565,1755907856983,-151.0,0.00013964,2]
[380934566,1755907856992,-438.484875,0.00013964,2]
[380934567,1755907857002,-315.925098,0.00013964,2]
[380934568,1755907857011,-438.484875,0.00013964,2]
[380934569,1755907857022,-315.925098,0.00013964,2]
[380934570,1755907857032,-315.925098,0.00013964,2]
[380934571,1755907857042,-315.925098,0.00013964,2]
[380934572,1755907857051,-500.0,0.00013965,2]
[380934573,1755907857061,-500.0,0.00013965,2]
[380934574,1755907857071,-151.0,0.00013965,2]
[380934575,1755907857081,-151.0,0.00013965,2]
[380934576,1755907857092,-151.0,0.00013965,2]
[380934577,1755907857103,-151.0,0.00013965,2]
[380934578,1755907857112,-151.0,0.00013965,2]
[380934579,1755907857122,-151.0,0.00013965,2]
[380934580,1755907857132,-151.0,0.00013965,2]
[380934581,1755907857142,-225.575883,0.00013965,2]
[380934582,1755907857151,-151.0,0.00013965,2]
[380934583,1755907857162,-225.575883,0.00013965,2]
[380934584,1755907857172,-225.575883,0.00013965,2]
[380934585,1755907857182,-225.575883,0.00013965,2]
[380934586,1755907857192,-151.0,0.00013965,2]
[380934587,1755907857202,-151.0,0.00013965,2]
[380934588,1755907857212,-151.0,0.00013965,2]
[380934589,1755907857222,-151.0,0.00013965,2]
[380934590,1755907857231,-151.0,0.00013965,2]
[380934591,1755907857241,-151.0,0.00013965,2]
[380934592,1755907857251,-151.0,0.00013965,2]
[380934593,1755907857261,-151.0,0.00013965,2]
[380934594,1755907857271,-151.0,0.00013965,2]
[380934595,1755907857280,-151.0,0.00013965,2]
[380934596,1755907857290,-151.0,0.00013965,2]
[380934597,1755907857299,-160.380644,0.00013965,2]
[380934598,1755907857309,-151.0,0.00013965,2]
[380934599,1755907857318,-151.0,0.00013965,2]
[380934600,1755907857330,-283.447446,0.00013965,2]
[380934601,1755907857341,-151.0,0.00013965,2]
[380934602,1755907857351,-153.191037,0.00013965,2]
[380934603,1755907857360,-151.0,0.00013965,2]
[380934604,1755907857369,-151.0,0.00013965,2]
[380934605,1755907857379,-151.0,0.00013965,2]
[380934606,1755907857390,-151.0,0.00013965,2]
[380934607,1755907857403,-151.0,0.00013965,2]
[380934608,1755907857413,-151.0,0.00013965,2]
[380934609,1755907857423,-151.0,0.00013965,2]
[380934610,1755907857433,-151.0,0.00013965,2]
[380934611,1755907857443,-151.0,0.00013965,2]
[380934612,1755907857453,-151.0,0.00013965,2]
[380934613,1755907857462,-151.0,0.00013965,2]
[380934614,1755907857472,-151.0,0.00013965,2]
[380934615,1755907857483,-151.0,0.00013965,2]
[380934616,1755907857493,-151.0,0.00013965,2]
[380934617,1755907857503,-285.295374,0.00013965,2]
[380934618,1755907857512,-151.0,0.00013965,2]
[380934619,1755907857522,-285.295374,0.00013965,2]
[380934620,1755907857531,-285.295374,0.00013965,2]
[380934621,1755907857540,-151.0,0.00013965,2]
[380934622,1755907857551,-151.0,0.00013965,2]
[380934623,1755907857561,-285.295374,0.00013965,2]
[380934624,1755907857572,-227.547595,0.00013965,2]
[380934625,1755907857582,-151.0,0.00013965,2]
[380934626,1755907857591,-227.547595,0.00013965,2]
[380934627,1755907857601,-267.304114,0.00013965,2]
[380934628,1755907857611,-227.547595,0.00013965,2]
[380934629,1755907857620,-267.304114,0.00013965,2]
[380934630,1755907857630,-227.547595,0.00013965,2]
[380934631,1755907857640,-267.304114,0.00013965,2]
[380934632,1755907857650,-328.978955,0.00013965,2]
[380934633,1755907857659,-267.304114,0.00013965,2]
[380934634,1755907857669,-328.978955,0.00013965,2]
[380934635,1755907857678,-328.978955,0.00013965,2]
[380934636,1755907857688,-151.0,0.00013965,2]
[380934637,1755907857697,-328.978955,0.00013965,2]
[380934638,1755907857707,-151.0,0.00013965,2]
[380934639,1755907857716,-151.0,0.00013965,2]
[380934640,1755907857726,-151.0,0.00013965,2]
[380934641,1755907857735,-151.0,0.00013965,2]
[380934642,1755907857745,-139.52609229,0.00013965,2]
[380934643,1755907858476,-400.0,0.00013698,2]
[380934644,1755907858486,-879.06988781,0.000139,2]
[380934645,1755907858496,-11.47390771,0.00013965,2]
[380934646,1755907858505,-151.0,0.00013965,2]
[380934647,1755907858514,-151.0,0.00013965,2]
[380934648,1755907858524,-96580.22004672,0.00013965,2]
[380934649,1755907858535,-210429.09325929,0.00013965,2]
[380934650,1755907859386,-400.0,0.00013698,2]
[380934651,1755907859396,-400.0,0.00013698,2]
[380934652,1755907859407,-172.56,0.000137,2]
[380934653,1755907859418,-172.56,0.000137,2]
[380934654,1755907859427,-3890.97,0.000137,2]
[380934655,1755907859438,-1173.0,0.00013854,2]
[380934656,1755907859447,-51829.62238004,0.00013965,2]
[380934657,1755907859459,-283.57418501,0.00013965,2]
[380934658,1755907859471,-37165.89444067,0.00013965,2]
[380934659,1755907859486,-59054.10555943,0.00013965,2]
[380934660,1755907859545,-400.0,0.00013698,2]
[380934661,1755907859555,-400.0,0.00013698,2]
[380934662,1755907859564,-9015.6,0.00013965,2]
[380934663,1755907878152,1000.0,0.00028767,120]
[380934664,1755907954413,10000.0,0.00012,2]
[380934665,1755907970377,1500.0,0.00012,2]
[380934667,1755908037669,200.0,0.00021,30]
[380934668,1755908041316,-235.98184969,0.00012944,2]
[380934669,1755908044401,-151.0,0.00012944,2]
[380934670,1755908045895,-103.88454444,0.00012944,2]
[380934675,1755908411034,160.0,0.00012692,7]
[380934676,1755908439915,-167.491163,0.00012643,2]
[380934677,1755908442499,-32.508837,0.00012643,2]
[380934678,1755908442523,-190.617336,0.00012678,2]
[380934679,1755908446005,-250.242664,0.00012678,2]
[380934680,1755908446028,-250.0,0.00012787,2]
[380934681,1755908446058,-22.96941178,0.00012787,2]
[380934682,1755908447116,-976.62792422,0.00012787,2]
[380934683,1755908450067,-0.402664,0.00012787,2]
[380934684,1755908450091,-150.0,0.00012787,2]
[380934685,1755908450115,-307.98,0.0001286,2]
[380934686,1755908454328,-151.0,0.0001286,2]
[380934687,1755908456676,-17.02,0.0001286,2]
[380934688,1755908456698,-166.67,0.00013073,2]
[380934689,1755908456721,-16.31,0.0001328,2]
[380934691,1755908666986,1085.0,0.00011941,2]
[380934692,1755908672417,1085.0,0.00011344,2]
[380934693,1755908676693,1085.0,0.00010777,2]
[380934696,1755908681438,1085.0,0.00010238,2]
[380934698,1755908686160,1085.0,0.00010071,2]
[380934699,1755908690775,1085.0,0.00010071,2]
[380934700,1755908694201,299.94769359,0.00028767,120]
[380934701,1755908695377,1085.0,0.00010071,2]
[380934702,1755908708731,296617.1928857,0.00011,2]
[380934703,1755908714433,-194.16051928,0.00011,2]
[380934704,1755908722404,-153.91974036,0.00011,2]
[380934705,1755908729090,-150.0,0.00011,2]
[380934706,1755908737864,-182.19,0.00011,2]
[380934707,1755908750897,-480.82,0.00010945,2]
[380934708,1755908757974,-1239.592185,0.00010945,2]
[380934709,1755908757996,-1239.592185,0.00011,2]
[380934710,1755908758027,-35528.2085428,0.00011,2]
[380934711,1755908765623,-181.43141766,0.00011,2]
[380934712,1755908773119,-626.01,0.00011,2]
[380934713,1755908781038,-184.602413,0.00011,2]
[380934714,1755908787828,-425.77,0.00011,2]
[380934715,1755908795309,-400.0,0.00011,2]
[380934716,1755908802972,-141.18508551,0.00010999,2]
[380934717,1755908803371,-117.62982898,0.00010999,2]
[380934718,1755908803381,-141.18508551,0.00011,2]
[380934719,1755908809785,-400.0,0.00011,2]
[380934720,1755908816869,-259.14603952,0.00011,2]
[380934721,1755908824268,-15.98,0.00010999,2]
[380934722,1755908824640,-134.02,0.00010999,2]
[380934723,1755908824652,-15.98,0.00011,2]
[380934724,1755908831010,-895.438419,0.00011,2]
[380934725,1755908838083,-175.31,0.00011,2]
[380934726,1755908847084,-200.15041903,0.00010999,2]
[380934727,1755908847615,-200.15041903,0.00011,2]
[380934728,1755908847636,-736.99653937,0.00011,2]
[380934730,1755908853760,-1251.0,0.000105,3]
[380934731,1755908853774,-249.0,0.000105,3]
[380934732,1755908853784,-1251.0,0.000106,3]
[380934733,1755908859181,-212.85783,0.000106,3]
[380934734,1755908861440,-500.0,0.000106,3]
[380934735,1755908869345,-1036.14217,0.000106,3]
[380934736,1755908869686,-1036.14217,0.000107,3]
[380934737,1755908869739,-3044.28566,0.000107,3]
[380934739,1755908882886,-80.42783,0.000107,3]
[380934740,1755908882910,-339.14434,0.000107,3]
[380934741,1755908882920,-80.42783,0.000108,3]
[380934746,1755908898317,-500.0,0.000108,3]
[380934747,1755908907610,-609.25394124,0.000108,3]
[380934748,1755908909372,2066.76634194,0.00026,120]
[380934749,1755908922964,-2714.12229577,0.000108,3]
[380934750,1755908929744,-158.48743178,0.0001075,2]
[380934751,1755908936421,-331.37973104,0.000108,3]
[380934752,1755908945396,-500.0,0.000108,3]
[380934753,1755908951127,-209.31879135,0.000108,3]
[380934754,1755908958198,-207.4,0.000108,3]
[380934756,1755908972576,-220.41,0.000108,3]
[380934757,1755908979620,-627.6874106,0.000108,3]
[380934758,1755908979639,-627.6874106,0.000109,3]
[380934759,1755908979651,-1495.6251788,0.000109,3]
[380934760,1755908987134,-91.51256822,0.0001075,2]
[380934761,1755908987152,-91.51256822,0.000109,3]
[380934762,1755908987175,-316.97486356,0.000109,3]
[380934763,1755908994617,-1200.0,0.000109,3]
[380934764,1755909000372,159.61,9.112e-05,2]
[380934765,1755909002083,-151.0,0.00010899,2]
[380934766,1755909009431,-149.0,0.00010899,2]
[380934776,1755909032877,-1200.0,0.00010899,2]
[380934777,1755909032886,-3768.19997882,0.000109,3]
[380934778,1755909032896,-282.24302918,0.000109,2]
[380934779,1755909032905,-735.24649952,0.000109,2]
[380934780,1755909032915,-614.6238188,0.000109,2]
[380934781,1755909032924,-429.97444095,0.000109,2]
[380934782,1755909032934,-799.27078736,0.000109,2]
[380934783,1755909032944,-493.97629918,0.00010973,2]
[380934784,1755909032954,-500.0,0.00010973,2]
[380934785,1755909032964,-500.0,0.00010973,2]
[380934786,1755909032974,-160.13456516,0.00010973,2]
[380934787,1755909032983,-500.0,0.00010973,2]
[380934788,1755909032993,-500.0,0.00010973,2]
[380934789,1755909033002,-500.0,0.00010973,2]
[380934790,1755909033011,-309.11261631,0.00010973,2]
[380934791,1755909033022,-190.88738369,0.00010973,2]
[380934792,1755909033032,-500.0,0.00010973,2]
[380934793,1755909033042,-511.72898354,0.00010973,2]
[380934794,1755909033052,-500.0,0.00010973,2]
[380934795,1755909033062,-1120.48565595,0.00010999,3]
[380934796,1755909033072,-150.0,0.00010999,2]
[380934797,1755909033082,-150.0,0.00010999,2]
[380934798,1755909033092,-150.0,0.00010999,2]
[380934799,1755909033101,-150.0,0.00010999,2]
[380934800,1755909033111,-150.0,0.00010999,2]
[380934801,1755909033121,-500.0,0.00010999,2]
[380934802,1755909033131,-500.0,0.00010999,2]
[380934804,1755909033140,-500.0,0.00010999,2]
[380934805,1755909033150,-500.0,0.00010999,2]
[380934806,1755909033161,-635.31362834,0.00010999,2]
[380934807,1755909033171,-195.05737797,0.00010999,2]
[380934808,1755909033190,-468.18276854,0.00010999,2]
[380934809,1755909033204,-347.19971924,0.00010999,2]
[380934810,1755909033213,-4764.91694415,0.00011,2]
[380934811,1755909033283,-258.0,0.00011,2]
[380934813,1755909038364,-26291.4230739,0.00011,2]
[380934814,1755909038375,-2958935.86436375,0.00011,2]
[380934815,1755909038385,-1927219.67433166,0.00011,2]
[380934816,1755909038395,-3836543.99494398,0.00011,2]
[380934817,1755909038404,-151.0,0.00011,2]
[380934818,1755909038414,-350.7879,0.00011,2]
[380934819,1755909038423,-151.0,0.00011,2]
[380934820,1755909038433,-350.7879,0.00011,2]
[380934821,1755909038444,-350.7879,0.00011,2]
[380934822,1755909038453,-350.7879,0.00011,2]
[380934823,1755909038462,-151.0,0.00011,2]
[380934824,1755909038472,-238.924975,0.00011,2]
[380934825,1755909038481,-197.805044,0.00011,2]
[380934826,1755909038491,-238.924975,0.00011,2]
[380934827,1755909038501,-238.924975,0.00011,2]
[380934828,1755909038512,-197.805044,0.00011,2]
[380934829,1755909038522,-197.805044,0.00011,2]
[380934830,1755909038531,-564.988906,0.00011,2]
[380934831,1755909038541,-238.924975,0.00011,2]
[380934832,1755909038550,-153.108068,0.00011,2]
[380934833,1755909038559,-197.805044,0.00011,2]
[380934834,1755909038569,-564.988906,0.00011,2]
[380934835,1755909038578,-564.988906,0.00011,2]
[380934836,1755909038587,-153.108068,0.00011,2]
[380934837,1755909038597,-564.988906,0.00011,2]
[380934838,1755909038607,-151.0,0.00011,2]
[380934839,1755909038616,-153.108068,0.00011,2]
[380934840,1755909038625,-153.108068,0.00011,2]
[380934841,1755909038635,-171.210141,0.00011,2]
[380934842,1755909038644,-151.0,0.00011,2]
[380934843,1755909038654,-171.210141,0.00011,2]
[380934844,1755909038665,-196.827048,0.00011,2]
[380934845,1755909038674,-171.210141,0.00011,2]
[380934847,1755909038683,-196.827048,0.00011,2]
[380934849,1755909038693,-171.210141,0.00011,2]
[380934851,1755909038702,-196.827048,0.00011,2]
[380934853,1755909038712,-151.0,0.00011,2]
[380934855,1755909038721,-196.827048,0.00011,2]
[380934856,1755909038730,-151.0,0.00011,2]
[380934857,1755909038739,-151.0,0.00011,2]
[380934858,1755909038748,-151.0,0.00011,2]
[380934859,1755909038758,-151.186429,0.00011,2]
[380934860,1755909038767,-151.0,0.00011,2]
[380934861,1755909038776,-331.387879,0.00011,2]
[380934862,1755909038786,-151.0,0.00011,2]
[380934863,1755909038795,-331.387879,0.00011,2]
[380934864,1755909038804,-151.0,0.00011,2]
[380934865,1755909038814,-331.387879,0.00011,2]
[380934866,1755909038823,-331.387879,0.00011,2]
[380934867,1755909038833,-151.0,0.00011,2]
[380934868,1755909038842,-151.0,0.00011,2]
[380934869,1755909038851,-202.747946,0.00011,2]
[380934870,1755909038860,-151.0,0.00011,2]
[380934871,1755909038870,-151.0,0.00011,2]
[380934872,1755909038879,-197067.19,0.00011,2]
[380934873,1755909038888,-151.0,0.00011,2]
[380934874,1755909038898,-151.0,0.00011,2]
[380934875,1755909038908,-275.765253,0.00011,2]
[380934876,1755909038917,-275.765253,0.00011,2]
[380934877,1755909038926,-275.765253,0.00011,2]
[380934878,1755909038935,-151.0,0.00011,2]
[380934879,1755909038945,-275.765253,0.00011,2]
[380934880,1755909038955,-151.0,0.00011,2]
[380934881,1755909038964,-151.0,0.00011,2]
[380934882,1755909038973,-720.265588,0.00011,2]
[380934883,1755909038983,-720.265588,0.00011,2]
[380934884,1755909038992,-151.0,0.00011,2]
[380934885,1755909039001,-720.265588,0.00011,2]
[380934886,1755909039010,-720.265588,0.00011,2]
[380934887,1755909039019,-10199.68,0.00011,2]
[380934888,1755909039031,-151.0,0.00011,2]
[380934889,1755909039041,-151.0,0.00011,2]
[380934890,1755909039050,-1619.279693,0.00011,2]
[380934891,1755909039060,-151.0,0.00011,2]
[380934892,1755909039069,-1619.279693,0.00011,2]
[380934893,1755909039393,-151.0,0.00011,2]
[380934894,1755909039406,-1619.279693,0.00011,2]
[380934895,1755909039416,-224.462135,0.00011,2]
[380934896,1755909039425,-151.0,0.00011,2]
[380934897,1755909039437,-1619.279693,0.00011,2]
[380934898,1755909039446,-224.462135,0.00011,2]
[380934899,1755909039456,-151.0,0.00011,2]
[380934900,1755909039466,-267.405332,0.00011,2]
[380934901,1755909039475,-151.0,0.00011,2]
[380934902,1755909039485,-224.462135,0.00011,2]
[380934903,1755909039494,-151.0,0.00011,2]
[380934904,1755909039503,-267.405332,0.00011,2]
[380934905,1755909039514,-224.462135,0.00011,2]
[380934906,1755909039523,-151.0,0.00011,2]
[380934907,1755909039533,-151.0,0.00011,2]
[380934908,1755909039542,-151.0,0.00011,2]
[380934909,1755909039552,-151.0,0.00011,2]
[380934910,1755909039562,-267.405332,0.00011,2]
[380934911,1755909039571,-1780.11382398,0.00011099,2]
[380934912,1755909039581,-4730.15108397,0.00011099,2]
[380934913,1755909039590,-1780.11382389,0.000112,2]
[380934914,1755909039600,-4730.15108397,0.000112,2]
[380934915,1755909039610,-529.299,0.00011283,2]
[380934916,1755909039619,-614.6238188,0.00011285,2]
[380934917,1755909039629,-429.97444087,0.00011322,2]
[380934918,1755909039639,-1780.11382389,0.000115,2]
[380934919,1755909039648,-4730.15108397,0.000115,2]
[380934920,1755909039658,-995.84403226,0.00011521,2]
[380934921,1755909039668,-1000.0,0.00011521,2]
[380934922,1755909039678,-939.72168011,0.00011521,2]
[380934923,1755909039688,-1000.0,0.00011521,2]
[380934924,1755909039698,-1000.0,0.00011521,2]
[380934925,1755909039708,-1002.90032224,0.00011521,2]
[380934926,1755909039717,-614.6238188,0.00011671,2]
[380934927,1755909039727,-429.97444087,0.00011743,2]
[380934928,1755909039736,-177.0,0.0001177,2]
[380934929,1755909039746,-310.0,0.0001177,2]
[380934930,1755909039755,-250.0,0.0001177,2]
[380934931,1755909039765,-1780.11382389,0.00011799,2]
[380934932,1755909039774,-4730.15108397,0.00011799,2]
[380934933,1755909039784,-1139.24,0.00011832,2]
[380934934,1755909039793,-420.0,0.00011978,2]
[380934935,1755909039803,-150.0,0.00011989,4]
[380934936,1755909039813,-1680.0,0.00011989,2]
[380934937,1755909039822,-255.0,0.00012044,2]
[380934938,1755909039831,-1829.0,0.00012056,2]
[380934939,1755909039841,-151.0,0.00012056,2]
[380934940,1755909039851,-151.0,0.00012056,2]
[380934941,1755909039860,-224.462135,0.00012056,2]
[380934942,1755909039870,-151.0,0.00012056,2]
[380934943,1755909039880,-224.462135,0.00012056,2]
[380934944,1755909039889,-267.405332,0.00012056,2]
[380934945,1755909039898,-224.462135,0.00012056,2]
[380934946,1755909039908,-151.0,0.00012056,2]
[380934947,1755909039917,-224.462135,0.00012056,2]
[380934948,1755909039926,-151.0,0.00012056,2]
[380934949,1755909039936,-221.51734,0.00012056,2]
[380934950,1755909039946,-267.405332,0.00012056,2]
[380934951,1755909039955,-267.405332,0.00012056,2]
[380934952,1755909039966,-614.6238188,0.00012056,2]
[380934953,1755909039975,-230.49143754,0.00012068,2]
[380934954,1755909039985,-1090.77571262,0.00012068,2]
[380934955,1755909039994,-1500.0,0.00012068,2]
[380934956,1755909040003,-1780.11382389,0.00012099,2]
[380934957,1755909040013,-4730.15108397,0.00012099,2]
[380934958,1755909040022,-25554.39,0.00012116,2]
[380934959,1755909040032,-907.0,0.00012116,2]
[380934960,1755909040042,-429.97444087,0.00012165,2]
[380934961,1755909040051,-500.0,0.00012301,2]
[380934962,1755909040060,-1780.11382389,0.00012399,2]
[380934963,1755909040070,-4730.15108397,0.00012399,2]
[380934964,1755909040080,-614.6238188,0.00012442,2]
[380934965,1755909040089,-1829.60864618,0.0001247,2]
[380934966,1755909040100,-1085.0,0.0001257,2]
[380934967,1755909040109,-429.97444087,0.00012586,2]
[380934968,1755909040119,-2000.0,0.00012616,2]
[380934969,1755909040128,-303.09,0.0001269,2]
[380934970,1755909040138,-1780.11382389,0.00012699,2]
[380934971,1755909040147,-4730.15108397,0.00012699,2]
[380934972,1755909040157,-614.6238188,0.00012827,2]
[380934973,1755909040167,-166.04,0.00012878,2]
[380934975,1755909040178,-166.04,0.00012878,2]
[380934976,1755909040188,-482.4726607,0.00012893,2]
[380934977,1755909040198,-1780.11382389,0.00012998,2]
[380934979,1755909040208,-4730.15108397,0.00012998,2]
[380934981,1755909040218,-587.0,0.00013164,2]
[380934982,1755909040228,-680.54584077,0.00013164,2]
[380934983,1755909040238,-433.0,0.00013187,2]
[380934984,1755909040248,-2351.0,0.00013188,2]
[380934985,1755909040258,-1085.0,0.00013198,2]
[380934988,1755909040268,-150.0,0.00013199,2]
[380934990,1755909040278,-197067.19,0.000132,2]
[380934992,1755909040287,-10199.68,0.000132,2]
[380934993,1755909040296,-151.0,0.000132,2]
[380934994,1755909040306,-256.169608,0.000132,2]
[380934995,1755909040316,-224.462135,0.000132,2]
[380934996,1755909040326,-151.0,0.000132,2]
[380934997,1755909040335,-224.462135,0.000132,2]
[380934998,1755909040346,-267.405332,0.000132,2]
[380934999,1755909040355,-224.462135,0.000132,2]